{"text_format":"1","workbook":"xlsx","n_sheets":16,"sheets":["Sheet1","Sheet2","Sheet3","Sheet4","Sheet5","Sheet6","Sheet7","Sheet8","Sheet9","Sheet10","Sheet11","Sheet12","Sheet13","Sheet14","Sheet15","Sheet16"],"not_rendered":{"charts":0,"images":0,"macros":1,"external_links":0,"defined_names":0,"comments":0,"pivot_tables":0},"unopened":[],"bounds":{"document_bytes":16777216,"sheet_cells":100000,"rows_first":2000,"rows_last":500,"rows_between":2000,"halvings":0,"cell_chars":16384,"cell_head_chars":4096},"cells_cut":0,"cells_raw":0,"read":"whole","date_system":"1900"}

{"sheet":"Sheet1","index":0,"n_rows":755,"n_cols":4,"rows_kept":755,"cut":false,"hidden":false,"merged":[]}
[null,null,"Seinfeld Trivia Questions","Ctrl+Shift+S"]
[{"$f":"SUM(A4:A9)","v":111}]
[null,null,"Categories"]
[24,1,"characters",23]
[18,2,"things",17]
[15,3,"places/locations",14]
[18,4,"actions/activities",17]
[18,5,"Sein-Language",17]
[18,6,"quotes",17]
[]
[null,"Cat","Question","Answer"]
[{"$f":"IF(B12<>B11,1,A11+1)","v":1},1,"Name one of Kramer’s \"mystery friends\" that you never see.","Lomez and Bob Sacamano"]
[{"$f":"IF(B13<>B12,1,A12+1)","v":2},1,"What superhero is Elaine after she finds out her poor superhero boyfriend is married?","Lois Loan"]
[3,1,"What NBC star does George want to be paid like?","Ted Danson"]
[4,1,"What NBC star does Susan like?","David Letterman"]
[5,1,"What does George say is so weird about his dad?","Wears his sneakers in the pool"]
[6,1,"What does George say is so weird about his mom?","Never laughed"]
[7,1,"What does Jerry say is so weird about his dad?","Never threw anything out ever"]
[8,1,"What is Pinter's English name?","Peter"]
[9,1,"Who's birthday wish does Kramer try to get?","Newman's"]
[10,1,"How tall is George?","5' 6\""]
[11,1,"Name one of the three things Jerry says George can do in order to get Elaine to set him up with her friend Cynthia.","bait a hook, run like the wind and lift 100 pounds right over his head"]
[12,1,"What kind of comedian is Jerry (I.e. what is his trademark)?","Did you ever notice this, did you ever notice that?"]
[13,1,"Who has no dignity and should die with no dignity?","George "]
[14,1,"Who is facinated with Greenland, enjoys teasing animals, banlon, seeing people running for their lives and throwing garbage out the window?","Elaine"]
[15,1,"Who's phone number does Elaine give the clerk at the store where she orders a pen for Mr. Pitt?","Jerry's"]
[16,1,"Who made the world's worst toast (the curse toast)?","George "]
[17,1,"Name the nickname George wants for himself.","T-Bone"]
[18,1,"What is the nickname George's co-workers give him?","Coco the monkey, Gammy"]
[19,1,"Who uses the alias \"Pennypecker?\"","Kramer"]
[20,1,"Who leaves the door to Jerry's apartment open because they were going to bring the spatula right back when his TV and stereo are stolen?","Kramer"]
[21,1,"Who says Happy Pappy?","Susan"]
[22,1,"Who tells George that Elaine is jealous that he is getting married?","The Rabbi"]
[23,1,"Question 1","Answer 1"]
[24,1,"Q1","A1"]
[1,2,"According to Kramer, what should his mattress be stuffed with?","Sand"]
[2,2,"According to Kramer, what was Da Vinci's sleeping schedule?","20 minutes every 3 hours"]
[3,2,"According to Kramer, what is so great about the coffee table book?","It actually becomes a coffee table"]
[4,2,"According to Kramer, what will help tenants get to know each other better?","Photos of each tenant in the building in the lobby"]
[5,2,"According to Kramer, what will make his apartment like ancient Egypt?","Levels"]
[6,2,"What tv show is mentioned often at NBC meetings (not the pilot)?","Blossom"]
[7,2,"What does Jerry try to return to the store \"for spite\"?","A sportscoat"]
[8,2,"What kind of calzones does Steinbrenner like?","Eggplant"]
[9,2,"What article of clothing is Kramer stuck inside?","Jeans"]
[10,2,"What is the gift that Elaine and Kramer both gets for Jerry for his birthday, but Kramer gives it to him first?","A two line phone"]
[11,2,"What parade do Kramer, Jerry, Elaine and George get stuck in?","Puerto Rican parade"]
[12,2,"What show does Elaine hate to miss on Sundays?","60 Minutes"]
[13,2,"What kind of car does Jerry drive?","Saab"]
[14,2,"What kind of car does Kramer drive?","Chevy Impala"]
[15,2,"What is Kramer burning when he gets the attention of the street thugs for the third time?","The Puerto Rican flag"]
[16,2,"What is Jerry talking about when he says \"What are you kidding?  People love it.  There's something about the clip-clop clip-clop, they're nuts for it\"?","Handsome cab ride"]
[17,2,"Question 2","Answer 2"]
[18,2,"Q2","A2"]
[1,3,"What candy does Elaine buy upon going to St Vincent's hospital to visit Jake Jarmel, her boyfriend, who was just in a car accident?","Jujy Fruits"]
[2,3,"What country does Peterman exile himself to?","Burma"]
[3,3,"Where does Sue Ellen Mishke start a bidding war with Elaine?","Kennedy Estate Auction"]
[4,3,"What occasion did they all chip in to buy a TV for?","engagement party"]
[5,3,"Where does Kramer install a garbage disposal?","shower"]
[6,3,"Where can't you get a single apartment according to the Maestro?","Tuscany"]
[7,3,"What city does George fly to in order to use the \"Jerkstore\" comeback?","Cleveland"]
[8,3,"Where did Jerry accidentally invite Joe Divola to Kramer's party?","NBC studios"]
[9,3,"What restaurant won't serve or make Elaine a \"big salad\"?","Reggie's"]
[10,3,"What's the name of their restaurant hangout called?","Monk's"]
[11,3,"Name the law firm Jerry \"staked\" out a girl at.","Sagman, Bennet, Robbins, Oppenheim and Taft"]
[12,3,"Who does cousin Jeffrey work for?","The Parks Department"]
[13,3,"Where do George and Jerry go to in the restaurant to escsape from Elaine's dad?","The bathroom"]
[14,3,"Where is Elaine's first job?","Pendant Publishing"]
[15,3,"Q3","A3"]
[1,4,"What does Jerry do to the label of his jeans?","Changes the 32 to a 31"]
[2,4,"What theme song does George imitate on his answering machine?","Greatest American Hero"]
[3,4,"Why is Jerry frightened in allowing Elaine to move in upstairs?","The pop-in"]
[4,4,"Why does George quit Rick-Bar Properties?","Can't use the executive bathroom"]
[5,4,"When Jerry loses his money in the laundry, how do he and Kramer get revenge?","By putting cement in the washer at the laundromat"]
[6,4,"What does George actually have when he goes to the hospital because he thinks he is having a heart attack?","Tonsilitis"]
[7,4,"What is the result of the dream Jerry has about illegal cable?","Jerry gets shot"]
[8,4,"According to Jerry, was Prognosis Negative a good movie?","No"]
[{"$f":"IF(B77<>B76,1,A76+1)","v":9},4,"What happens when Kramer leaves the busboy's door open?","The busboy's cat runs out and gets lost"]
[10,4,"What did Jerry, Elaine and George do to get Jerry's dentist investigated for insurance fraud?","Got a doctor's note for a massage"]
[11,4,"How many times a day does Jerry gargle?","Six"]
[12,4,"How did Puddy prepare for a hockey game to \"support the team\"?","face/body painting"]
[13,4,"What appliance did Kramer install in his shower?","Garbage disposal"]
[14,4,"What did Jerry try to have illegally installed in his apartment?","Cable service"]
[15,4,"Describe the plot of the pilot","Judge decrees because no insurance he must become Jerry's butler"]
[16,4,"Describe 2 settlements in Kramer's legal suits.","Unlimited Café Lates and Him as the Marlboro man on moving billboard"]
[17,4,"How does the clown put out the fire at the birthday party where George pushes his way to the door to escape from the fire?","with his Big Shoe"]
[18,4,"Q4","A4"]
[1,5,"What's the name of the doll which runs across the room while Jerry's sleeping in the Kenny Roger's Roaster's episode?","Mr. Marbles"]
[2,5,"What is the nickname for Jerry's girlfriend who was beautiful but he couldn't bear to shake her hand or watch her tear apart lobster?","Man-Hands"]
[3,5,"What word describes what the characteristic Mrs. America contestants must have?","Poise"]
[4,5,"According to Jerry, Tim Whatley become Jewish to attain what?","Joke Immunity"]
[5,5,"If Jerry takes back the superbowl tickets from Tim Whatley he becomes what?","A degifter"]
[6,5,"Name 2 things which George does the opposite in \"The opposite\"","not get upset driving, yell at rowdy movie theater goers, yell at Steinbrenner, order opposite food"]
[7,5,"Why does Jerry keep explaining to the model he met saying, \"No pick!\"","She thought she caught him picking his nose"]
[8,5,"What is the name for Newman's turn of the millenium party?","Newmanium"]
[9,5,"Who calls a girl because someone told him she said \"Hi\" when actually they didn't say \"Hi\".  She just gave her regards.  \"It's not like saying Hi\" she explains to him.","George"]
[10,5,"What strange speaking habit does Elaine's boyfriend Aaron have?  (He has a strange obsession with entertaining Jerry's parents)","close talker"]
[11,5,"What speaking habit does Kramer's girlfriend have that causes Jerry to accidentally agree to wear a puffy shirt on national television?","soft talker"]
[12,5,"What brand of drink is often offered to guests in Jerry's apartment?","Snapple"]
[13,5,"According to Kramer, what counts as much as swimsuit, eveningwear and talent in the Miss America pagent?","poise"]
[14,5,"What is the name of Kramer's rooster?","Little Jerry Seinfeld"]
[15,5,"What social \"office\" thing does Elaine despise?","Cake parties"]
[16,5,"What is it when someone sends you an invitation to somewhere they really don't want you to go to?","Unvitation"]
[17,5,"What is wrong with the vault in its present state?","too many people have the combination"]
[18,5,"Q5","A5"]
[1,6,"Who says \"Listen to the bell Grosbard, it bell tolls for thee?\" about getting back $240 from an old roommate?","Kramer"]
[2,6,"Who says \"Yes I'm sure.  I would know if a tray of food had been served to me.\"","Elaine"]
[3,6,"\"They got the fudge on the bottom.  That enables you to control your fudge _______ as your eating your ice cream.\"","distribution"]
[4,6,"(George to his mom) \"You take _______ out of this relationship and it's just torture\"","TV"]
[5,6,"Who says \"Your not the only one improving yourself.  I lifted a dumb bell yesterday.  I feel vigorous?\"","Frank Costanza"]
[6,6,"Who says \"Do you date immature men?","Jerry"]
[7,6,"Who says \"Who am I, Rich Little?\"","Mrs. Seinfeld"]
[8,6,"Who says \"Jerry, I never saw you flirt with anyone before.  It was quite the spectacle.\"","Elaine"]
[9,6,"Jerry to Elaine, \"When your on a stakeout do you find it better to stand up against the wall or crouch down behind a big ______?\"","plant"]
[10,6,"Who says about moving into Jerry's apartment \"For me it's like a step up, it's like moving from Iceland to Finland?\"","Elaine"]
[11,6,"Who says about a new apartment \"If a situation arose, where you didn't want it, I would be willing to take it?\"","George"]
[12,6,"\"Now I know what I have been waiting for all these years…_______.\" (Jerry referring to his soul mate)","Myself"]
[13,6,"\"If it were socially acceptable, I would drape myself in _________\".","Velvet"]
[14,6,"What is George's line in the movie the Blimp?","That's gotta hurt"]
[15,6,"(Elaine about John Jermaine) \"I'm trying to get a little _______ to come over to me here, I don't want to make any big sudden movements.  I'll frighten him away\".","squirrel"]
[16,6,"Who says \"You know one of these days, something terrible is going to happen to you.  It HAS to\"?","Elaine"]
[17,6,"Who says \"One never knows how the gastro intestinal workings of the equine will function\"?","Kramer"]
[18,6,"Q6","A6"]
[1]
[2]
[3]
[4]
[5]
[6]
[7]
[8]
[9]
[10]
[11]
[12]
[13]
[14]
[15]
[16]
[17]
[18]
[{"$f":"IF(B141<>B140,1,A140+1)","v":19}]
[20]
[21]
[22]
[23]
[24]
[25]
[26]
[27]
[28]
[29]
[30]
[31]
[32]
[33]
[34]
[35]
[36]
[37]
[38]
[39]
[40]
[41]
[42]
[43]
[44]
[45]
[46]
[47]
[48]
[49]
[50]
[51]
[52]
[53]
[54]
[55]
[56]
[57]
[58]
[59]
[60]
[61]
[62]
[63]
[64]
[65]
[66]
[67]
[68]
[69]
[70]
[71]
[72]
[73]
[74]
[75]
[76]
[77]
[78]
[79]
[80]
[81]
[82]
[{"$f":"IF(B205<>B204,1,A204+1)","v":83}]
[84]
[85]
[86]
[87]
[88]
[89]
[90]
[91]
[92]
[93]
[94]
[95]
[96]
[97]
[98]
[99]
[100]
[101]
[102]
[103]
[104]
[105]
[106]
[107]
[108]
[109]
[110]
[111]
[112]
[113]
[114]
[115]
[116]
[117]
[118]
[119]
[120]
[121]
[122]
[123]
[124]
[125]
[126]
[127]
[128]
[129]
[130]
[131]
[132]
[133]
[134]
[135]
[136]
[137]
[138]
[139]
[140]
[141]
[142]
[143]
[144]
[145]
[146]
[{"$f":"IF(B269<>B268,1,A268+1)","v":147}]
[148]
[149]
[150]
[151]
[152]
[153]
[154]
[155]
[156]
[157]
[158]
[159]
[160]
[161]
[162]
[163]
[164]
[165]
[166]
[167]
[168]
[169]
[170]
[171]
[172]
[173]
[174]
[175]
[176]
[177]
[178]
[179]
[180]
[181]
[182]
[183]
[184]
[185]
[186]
[187]
[188]
[189]
[190]
[191]
[192]
[193]
[194]
[195]
[196]
[197]
[198]
[199]
[200]
[201]
[202]
[203]
[204]
[205]
[206]
[207]
[208]
[209]
[210]
[{"$f":"IF(B333<>B332,1,A332+1)","v":211}]
[212]
[213]
[214]
[215]
[216]
[217]
[218]
[219]
[220]
[221]
[222]
[223]
[224]
[225]
[226]
[227]
[228]
[229]
[230]
[231]
[232]
[233]
[234]
[235]
[236]
[237]
[238]
[239]
[240]
[241]
[242]
[243]
[244]
[245]
[246]
[247]
[248]
[249]
[250]
[251]
[252]
[253]
[254]
[255]
[256]
[257]
[258]
[259]
[260]
[261]
[262]
[263]
[264]
[265]
[266]
[267]
[268]
[269]
[270]
[271]
[272]
[273]
[274]
[{"$f":"IF(B397<>B396,1,A396+1)","v":275}]
[276]
[277]
[278]
[279]
[280]
[281]
[282]
[283]
[284]
[285]
[286]
[287]
[288]
[289]
[290]
[291]
[292]
[293]
[294]
[295]
[296]
[297]
[298]
[299]
[300]
[301]
[302]
[303]
[304]
[305]
[306]
[307]
[308]
[309]
[310]
[311]
[312]
[313]
[314]
[315]
[316]
[317]
[318]
[319]
[320]
[321]
[322]
[323]
[324]
[325]
[326]
[327]
[328]
[329]
[330]
[331]
[332]
[333]
[334]
[335]
[336]
[337]
[338]
[{"$f":"IF(B461<>B460,1,A460+1)","v":339}]
[340]
[341]
[342]
[343]
[344]
[345]
[346]
[347]
[348]
[349]
[350]
[351]
[352]
[353]
[354]
[355]
[356]
[357]
[358]
[359]
[360]
[361]
[362]
[363]
[364]
[365]
[366]
[367]
[368]
[369]
[370]
[371]
[372]
[373]
[374]
[375]
[376]
[377]
[378]
[379]
[380]
[381]
[382]
[383]
[384]
[385]
[386]
[387]
[388]
[389]
[390]
[391]
[392]
[393]
[394]
[395]
[396]
[397]
[398]
[399]
[400]
[401]
[402]
[{"$f":"IF(B525<>B524,1,A524+1)","v":403}]
[404]
[405]
[406]
[407]
[408]
[409]
[410]
[411]
[412]
[413]
[414]
[415]
[416]
[417]
[418]
[419]
[420]
[421]
[422]
[423]
[424]
[425]
[426]
[427]
[428]
[429]
[430]
[431]
[432]
[433]
[434]
[435]
[436]
[437]
[438]
[439]
[440]
[441]
[442]
[443]
[444]
[445]
[446]
[447]
[448]
[449]
[450]
[451]
[452]
[453]
[454]
[455]
[456]
[457]
[458]
[459]
[460]
[461]
[462]
[463]
[464]
[465]
[466]
[{"$f":"IF(B589<>B588,1,A588+1)","v":467}]
[468]
[469]
[470]
[471]
[472]
[473]
[474]
[475]
[476]
[477]
[478]
[479]
[480]
[481]
[482]
[483]
[484]
[485]
[486]
[487]
[488]
[489]
[490]
[491]
[492]
[493]
[494]
[495]
[496]
[497]
[498]
[499]
[500]
[501]
[502]
[503]
[504]
[505]
[506]
[507]
[508]
[509]
[510]
[511]
[512]
[513]
[514]
[515]
[516]
[517]
[518]
[519]
[520]
[521]
[522]
[523]
[524]
[525]
[526]
[527]
[528]
[529]
[530]
[{"$f":"IF(B653<>B652,1,A652+1)","v":531}]
[532]
[533]
[534]
[535]
[536]
[537]
[538]
[539]
[540]
[541]
[542]
[543]
[544]
[545]
[546]
[547]
[548]
[549]
[550]
[551]
[552]
[553]
[554]
[555]
[556]
[557]
[558]
[559]
[560]
[561]
[562]
[563]
[564]
[565]
[566]
[567]
[568]
[569]
[570]
[571]
[572]
[573]
[574]
[575]
[576]
[577]
[578]
[579]
[580]
[581]
[582]
[583]
[584]
[585]
[586]
[587]
[588]
[589]
[590]
[591]
[592]
[593]
[594]
[{"$f":"IF(B717<>B716,1,A716+1)","v":595}]
[596]
[597]
[598]
[599]
[600]
[601]
[602]
[603]
[604]
[605]
[606]
[607]
[608]
[609]
[610]
[611]
[612]
[613]
[614]
[615]
[616]
[617]
[618]
[619]
[620]
[621]
[622]
[623]
[624]
[625]
[626]
[627]
[628]
[629]
[630]
[631]
[632]
[633]

{"sheet":"Sheet2","index":1,"n_rows":0,"n_cols":0,"rows_kept":0,"cut":false,"hidden":false,"merged":[]}

{"sheet":"Sheet3","index":2,"n_rows":0,"n_cols":0,"rows_kept":0,"cut":false,"hidden":false,"merged":[]}

{"sheet":"Sheet4","index":3,"n_rows":0,"n_cols":0,"rows_kept":0,"cut":false,"hidden":false,"merged":[]}

{"sheet":"Sheet5","index":4,"n_rows":0,"n_cols":0,"rows_kept":0,"cut":false,"hidden":false,"merged":[]}

{"sheet":"Sheet6","index":5,"n_rows":0,"n_cols":0,"rows_kept":0,"cut":false,"hidden":false,"merged":[]}

{"sheet":"Sheet7","index":6,"n_rows":0,"n_cols":0,"rows_kept":0,"cut":false,"hidden":false,"merged":[]}

{"sheet":"Sheet8","index":7,"n_rows":0,"n_cols":0,"rows_kept":0,"cut":false,"hidden":false,"merged":[]}

{"sheet":"Sheet9","index":8,"n_rows":0,"n_cols":0,"rows_kept":0,"cut":false,"hidden":false,"merged":[]}

{"sheet":"Sheet10","index":9,"n_rows":0,"n_cols":0,"rows_kept":0,"cut":false,"hidden":false,"merged":[]}

{"sheet":"Sheet11","index":10,"n_rows":0,"n_cols":0,"rows_kept":0,"cut":false,"hidden":false,"merged":[]}

{"sheet":"Sheet12","index":11,"n_rows":0,"n_cols":0,"rows_kept":0,"cut":false,"hidden":false,"merged":[]}

{"sheet":"Sheet13","index":12,"n_rows":0,"n_cols":0,"rows_kept":0,"cut":false,"hidden":false,"merged":[]}

{"sheet":"Sheet14","index":13,"n_rows":0,"n_cols":0,"rows_kept":0,"cut":false,"hidden":false,"merged":[]}

{"sheet":"Sheet15","index":14,"n_rows":0,"n_cols":0,"rows_kept":0,"cut":false,"hidden":false,"merged":[]}

{"sheet":"Sheet16","index":15,"n_rows":0,"n_cols":0,"rows_kept":0,"cut":false,"hidden":false,"merged":[]}